bitfinex/quotes_BTCUSD_20250718
["timestamp","ask_amount","ask_price","bid_price","bid_amount"]
[1752852585317,0.09480273,117840.0,117830.0,1.11326943]
[1752852585533,0.07783151,117840.0,117830.0,1.11326943]
[1752852586736,0.07783151,117840.0,117830.0,0.64028252]
[1752852586916,0.07783151,117840.0,117830.0,1.11326943]
[1752852587567,0.09480251,117840.0,117830.0,1.11326943]
[1752852587780,0.08631708,117840.0,117830.0,1.11326943]
[1752852588006,0.39501266,117840.0,117830.0,0.006]
[1752852588230,0.49805379,117840.0,117830.0,0.006]
[1752852588670,0.40990209,117840.0,117830.0,0.19270944]
[1752852588918,0.40041637,117840.0,117830.0,0.47498691]
[1752852589129,0.40041637,117840.0,117830.0,0.002]
[1752852589130,0.39491044,117840.0,117830.0,0.002]
[1752852589352,0.39491044,117840.0,117810.0,0.18674067]
[1752852589353,0.20369917,117820.0,117810.0,0.18674067]
[1752852589574,0.20369967,117820.0,117810.0,0.65972758]
[1752852589784,0.26933853,117820.0,117810.0,0.66821539]
[1752852590006,0.08261325,117820.0,117810.0,0.67670312]
[1752852590227,0.08261282,117820.0,117810.0,0.67670312]
[1752852590648,0.0826627,117820.0,117810.0,0.67670312]
[1752852590860,0.06568874,117820.0,117810.0,0.74229458]
[1752852591077,0.06369874,117820.0,117810.0,0.74525458]
[1752852591293,0.06369874,117820.0,117810.0,0.68179312]
[1752852591521,0.06469874,117820.0,117810.0,0.68379312]
[1752852592375,0.06469874,117820.0,117810.0,0.7693034]
[1752852592832,0.06469874,117820.0,117810.0,0.77333204]
[1752852593896,0.07318568,117820.0,117810.0,0.77333204]
[1752852594124,0.06469874,117820.0,117810.0,0.77333204]
[1752852594564,0.06469874,117820.0,117810.0,0.89079166]
[1752852594993,0.06469874,117820.0,117810.0,0.80503204]
[1752852596486,0.06469874,117820.0,117810.0,0.78963204]
[1752852598394,0.06469874,117820.0,117810.0,1.12963204]
[1752852598591,0.06469874,117820.0,117810.0,1.14503204]
[1752852600274,1e-08,117820.0,117810.0,1.14403204]
[1752852600476,1e-08,117820.0,117810.0,1.24433251]
[1752852600714,1e-08,117820.0,117810.0,1.24533251]
[1752852600839,1e-08,117820.0,117810.0,0.7723456]
[1752852601248,1e-08,117820.0,117810.0,0.7773456]
[1752852601506,1e-08,117820.0,117810.0,0.7743456]
[1752852602071,1e-08,117820.0,117810.0,0.7733456]
[1752852605074,0.3,117860.0,117850.0,0.53516246]
[1752852605315,0.06711128,117870.0,117860.0,0.1951459]
[1752852605542,0.06761098,117870.0,117860.0,0.28280618]
[1752852605781,0.06761098,117870.0,117860.0,0.28589618]
[1752852606213,0.0004997,117870.0,117860.0,0.78385591]
[1752852607640,0.0004997,117870.0,117860.0,1.15505591]
[1752852607861,0.0004997,117870.0,117860.0,1.24081553]
[1752852608737,0.0004997,117870.0,117860.0,1.24181553]
[1752852609578,0.0004997,117870.0,117860.0,1.24081553]
[1752852610007,0.0014997,117870.0,117860.0,1.24581553]
[1752852610216,0.0014997,117870.0,117860.0,1.12885591]
[1752852612629,0.0034797,117870.0,117860.0,1.12576591]
[1752852613060,0.0014997,117870.0,117860.0,1.12885591]
[1752852613280,0.0014997,117870.0,117860.0,0.655869]
[1752852613485,0.0014997,117870.0,117860.0,1.12885591]
[1752852613907,0.0014997,117870.0,117860.0,1.21461553]
[1752852614122,0.0014997,117870.0,117860.0,1.12885591]
[1752852616736,0.0014997,117870.0,117860.0,1.10388309]
[1752852619697,0.0014997,117870.0,117860.0,1.12915571]
[1752852620974,0.0014997,117870.0,117860.0,1.62341274]
[1752852622965,0.0014997,117870.0,117860.0,1.13979077]
[1752852623368,0.0014997,117870.0,117860.0,1.22555039]
[1752852623820,0.0014997,117870.0,117860.0,1.70917236]
[1752852625384,0.0014997,117870.0,117860.0,1.13979077]
[1752852629054,0.0014997,117870.0,117860.0,1.62341274]
[1752852633756,0.0355797,117870.0,117860.0,0.6509288]
[1752852633955,0.05553646,117870.0,117860.0,0.68376787]
[1752852634090,0.14401987,117870.0,117860.0,0.68376787]
[1752852634313,0.14401972,117870.0,117860.0,0.68376787]
[1752852634499,0.1185697,117870.0,117860.0,0.68376787]
[1752852634736,0.12406311,117870.0,117860.0,0.68376787]
[1752852634935,0.1155797,117870.0,117860.0,0.68376787]
[1752852635172,0.0999797,117870.0,117860.0,0.68276787]
[1752852635519,0.1154797,117870.0,117860.0,0.67876787]
[1752852635950,0.1154797,117870.0,117860.0,0.68076787]
[1752852636151,0.0999797,117870.0,117860.0,0.69987587]
[1752852636972,0.0999797,117870.0,117860.0,0.70194587]
[1752852637408,0.0999797,117870.0,117860.0,0.72754851]
[1752852637682,0.0999797,117870.0,117860.0,0.72547851]
[1752852637877,0.10846297,117870.0,117860.0,0.70637051]
[1752852638086,0.14491987,117870.0,117860.0,0.68076787]
[1752852638284,0.1534035,117870.0,117860.0,0.68076787]
[1752852638703,0.14491987,117870.0,117860.0,0.68076787]
[1752852638986,0.13643638,117870.0,117860.0,0.68076787]
[1752852639284,0.13344638,117870.0,117860.0,0.68076787]
[1752852639498,0.14192994,117870.0,117860.0,0.68076787]
[1752852639714,0.15339364,117870.0,117860.0,0.1971459]
[1752852639914,0.14490994,117870.0,117860.0,0.68076787]
[1752852640119,0.13344631,117870.0,117860.0,0.68076787]
[1752852640494,0.1164797,117870.0,117860.0,0.68076787]
[1752852640746,0.0999797,117870.0,117860.0,0.1971459]
[1752852640934,0.14421051,117870.0,117860.0,0.20563032]
[1752852641259,0.3138894,117870.0,117860.0,0.18017749]
[1752852641463,0.30540577,117870.0,117860.0,0.49410661]
[1752852641628,0.30540577,117870.0,117860.0,0.50279697]
[1752852641847,0.35546052,117870.0,117860.0,0.50279697]
[1752852643107,0.39091605,117870.0,117860.0,0.019175]
[1752852643709,0.39091605,117870.0,117860.0,0.67248982]
[1752852643980,0.31388969,117870.0,117860.0,0.69794316]
[1752852644173,0.31388969,117870.0,117860.0,0.6979433]
[1752852644389,0.30540592,117870.0,117860.0,0.20583691]
[1752852644593,0.29692207,117870.0,117860.0,0.68097439]
[1752852644821,0.32240007,117870.0,117860.0,0.68097446]
[1752852645021,0.32240007,117870.0,117860.0,0.68945903]
[1752852645380,0.15822489,117870.0,117860.0,0.71491201]
[1752852645583,0.17519251,117870.0,117860.0,0.7149115]
[1752852645798,0.17519251,117870.0,117860.0,0.70642729]
[1752852646342,0.16670866,117870.0,117860.0,0.70642729]
[1752852646504,0.15822489,117870.0,117860.0,0.70642729]
[1752852646863,0.34487096,117870.0,117860.0,0.21432133]
[1752852647074,0.35335488,117870.0,117860.0,0.71491193]
[1752852647314,0.14974097,117870.0,117860.0,0.71491121]
[1752852647527,0.1069777,117870.0,117860.0,0.78932622]
[1752852647731,0.0814997,117870.0,117860.0,0.78932622]
[1752852648609,0.0814997,117870.0,117860.0,0.72021121]
[1752852650471,0.0814997,117870.0,117860.0,0.23658924]
[1752852650672,0.0814997,117870.0,117860.0,0.72021121]
[1752852651097,0.08998297,117870.0,117860.0,0.72021121]
[1752852651839,0.11565638,117870.0,117860.0,0.23128924]
[1752852652014,0.13262364,117870.0,117860.0,0.71491121]
[1752852652211,0.14110741,117870.0,117860.0,0.71491121]
[1752852652421,0.12413994,117870.0,117860.0,0.71491121]
[1752852652606,0.13262357,117870.0,117860.0,0.71491121]
[1752852652799,0.14110734,117870.0,117860.0,0.71491121]
[1752852653003,0.1241403,117870.0,117860.0,0.71491121]
[1752852653237,0.132624,117870.0,117860.0,0.71491121]
[1752852653453,0.132624,117870.0,117860.0,0.23128924]
[1752852653655,0.14110777,117870.0,117860.0,0.71491121]
[1752852654126,0.132624,117870.0,117860.0,0.71491121]
[1752852654340,0.11565667,117870.0,117860.0,0.71491121]
[1752852654752,0.1241403,117870.0,117860.0,0.71491121]
[1752852654962,0.11565667,117870.0,117860.0,0.71491121]
[1752852655354,0.12414037,117870.0,117860.0,0.71491121]
[1752852655649,0.11565667,117870.0,117860.0,0.71491121]
[1752852656047,0.12414037,117870.0,117860.0,0.71491121]
[1752852656473,0.11565667,117870.0,117860.0,0.71698121]
[1752852656928,0.0986897,117870.0,117860.0,0.71698121]
[1752852657127,0.0834897,117870.0,117860.0,0.76177787]
[1752852657450,0.08998304,117870.0,117860.0,0.76177787]
[1752852657668,0.0814997,117870.0,117860.0,0.76177787]
[1752852658140,0.0814997,117870.0,117860.0,0.72021121]
[1752852660066,0.0004,117890.0,117880.0,0.19511279]
[1752852660282,0.00054978,117890.0,117880.0,0.28592307]
[1752852660496,0.00054978,117890.0,117880.0,0.76954504]
[1752852660718,0.00054978,117890.0,117880.0,1.25316701]
[1752852660935,0.00054978,117890.0,117880.0,1.33892663]
[1752852661397,0.00054978,117890.0,117880.0,0.76954504]
[1752852662047,0.00054978,117890.0,117880.0,1.25825925]
[1752852662275,0.00054978,117890.0,117880.0,1.28955925]
[1752852662529,0.00054978,117890.0,117880.0,0.30611531]
[1752852662740,0.00054978,117890.0,117880.0,1.27335925]
[1752852662930,0.00054978,117890.0,117880.0,1.35911887]
[1752852663177,0.00054978,117890.0,117880.0,1.37531887]
[1752852663565,0.00054978,117890.0,117880.0,1.37631887]
[1752852664008,0.00054978,117890.0,117880.0,0.40907493]
[1752852664218,0.00054978,117890.0,117880.0,1.29055925]
[1752852664658,0.00054978,117890.0,117880.0,1.27435925]
[1752852666655,0.00054978,117890.0,117880.0,1.29005925]
[1752852667493,0.00054978,117890.0,117880.0,1.27435925]
[1752852667730,0.00054978,117890.0,117880.0,0.30711531]
[1752852667950,0.00054978,117890.0,117880.0,1.25925925]
[1752852668159,0.02621176,117890.0,117880.0,0.684827]
[1752852668588,0.02621176,117890.0,117880.0,0.686817]
[1752852669057,0.00054978,117890.0,117880.0,1.24855154]
[1752852669712,0.00054978,117890.0,117880.0,0.2813076]
[1752852669926,0.00054978,117890.0,117880.0,1.24855154]
[1752852670133,0.00903168,117890.0,117880.0,1.24855154]
[1752852670360,0.00054978,117890.0,117880.0,1.17362897]
[1752852673533,0.00054978,117890.0,117880.0,1.29073925]
[1752852673952,0.00054978,117890.0,117880.0,1.63073925]
[1752852674373,1e-08,117890.0,117880.0,2.12890207]
[1752852674584,1e-08,117890.0,117880.0,2.21466169]
[1752852675009,1e-08,117890.0,117880.0,1.73103972]
[1752852675466,1e-08,117890.0,117880.0,2.21366169]
[1752852675645,0.07463778,117920.0,117910.0,1.53390709]
[1752852675863,0.07463778,117920.0,117910.0,1.62140737]
[1752852676097,0.07463778,117920.0,117910.0,1.71035699]
[1752852676313,0.07463778,117920.0,117910.0,1.73551593]
[1752852677147,0.07463778,117920.0,117910.0,1.24000732]
[1752852678028,0.07463778,117920.0,117910.0,0.76827199]
[1752852678234,0.04133313,117950.0,117940.0,0.19501354]
[1752852678439,0.00347831,117940.0,117930.0,0.52653753]
[1752852678645,0.01195683,117940.0,117930.0,0.61204781]
[1752852678850,0.01393676,117940.0,117930.0,0.61204781]
[1752852679280,0.00847903,117930.0,117920.0,0.16958164]
[1752852679471,0.04312751,117930.0,117920.0,0.28053187]
[1752852679677,0.04312751,117930.0,117920.0,0.7522672]
[1752852679904,0.21096173,117930.0,117910.0,0.21893162]
[1752852680102,0.22734639,117920.0,117910.0,0.19906343]
[1752852680316,0.04294982,117920.0,117910.0,0.21602465]
[1752852680527,0.00217,117920.0,117910.0,0.68974998]
[1752852680727,0.00847975,117920.0,117910.0,0.67597819]
[1752852680929,0.22663051,117930.0,117920.0,0.19504675]
[1752852681136,0.05920787,117930.0,117920.0,0.6752619]
[1752852681342,0.24575848,117930.0,117920.0,0.19504668]
[1752852681549,0.23727895,117930.0,117920.0,0.65830212]
[1752852681753,0.30880036,117930.0,117920.0,0.18656694]
[1752852681985,0.30132112,117930.0,117920.0,0.17808676]
[1752852682188,0.00847989,117920.0,117910.0,0.66679775]
[1752852682398,0.01064989,117920.0,117910.0,0.66679775]
[1752852683214,0.03412971,117920.0,117910.0,0.66679775]
[1752852683419,0.03412957,117920.0,117910.0,0.66679775]
[1752852683625,0.01064975,117920.0,117910.0,0.66878775]
[1752852683847,0.00847967,117920.0,117910.0,0.67397775]
[1752852684042,0.30653057,117930.0,117920.0,0.19504689]
[1752852684254,0.30870057,117930.0,117920.0,0.17808683]
[1752852684466,0.30870057,117930.0,117920.0,0.66678244]
[1752852684608,0.25807144,117930.0,117920.0,0.6804424]
[1752852684825,0.08,117930.0,117920.0,0.68892222]
[1752852685465,0.0969582,117930.0,117920.0,0.68892222]
[1752852685869,0.08,117930.0,117920.0,0.7744325]
[1752852686097,0.25993529,117940.0,117930.0,0.19503007]
[1752852686302,0.24495824,117940.0,117930.0,0.6719454]
[1752852686450,0.24297824,117940.0,117930.0,0.6719454]
[1752852687025,0.2345,117940.0,117930.0,0.77094768]
[1752852687436,0.00054973,117950.0,117940.0,0.19501354]
[1752852687611,0.00054973,117950.0,117940.0,0.66873887]
[1752852687831,0.00054973,117950.0,117940.0,0.77293915]
[1752852690566,0.00054973,117950.0,117940.0,0.64809135]
[1752852690785,0.00054973,117950.0,117940.0,1.2055863]
[1752852691454,0.00054973,117950.0,117940.0,0.73385097]
[1752852691677,0.00054973,117950.0,117940.0,1.2055863]
[1752852691903,0.00054973,117950.0,117940.0,0.73385097]
[1752852692107,0.00054973,117950.0,117940.0,1.2055863]
[1752852692938,0.00054973,117950.0,117940.0,0.73385097]
[1752852693186,0.00054973,117950.0,117940.0,1.2055863]
[1752852693378,0.00054973,117950.0,117940.0,1.69322163]
[1752852693591,0.00054973,117950.0,117940.0,1.2214863]
[1752852694215,0.00054973,117950.0,117940.0,1.2224863]
[1752852694887,0.00054973,117950.0,117940.0,1.69422163]
[1752852695337,0.00054973,117950.0,117940.0,1.2224863]
[1752852695569,0.00054973,117950.0,117940.0,0.64909135]
[1752852695799,0.1720931,117950.0,117940.0,1.07889089]
[1752852696040,0.204049,117950.0,117940.0,0.342]
[1752852696255,0.222239,117950.0,117940.0,0.002]
[1752852696467,0.2614578,117950.0,117940.0,0.002]
[1752852696677,0.01695827,117930.0,117920.0,0.19504647]
[1752852696891,0.02543773,117930.0,117920.0,0.75229208]
[1752852697139,0.02742758,117930.0,117920.0,0.75229208]
[1752852697351,0.00199,117930.0,117920.0,0.75229208]
[1752852697574,0.00199,117930.0,117920.0,0.75427208]
[1752852697986,0.0189482,117930.0,117920.0,0.28552675]
[1752852698196,0.01894813,117930.0,117920.0,0.75826208]
[1752852698420,0.00199,117930.0,117920.0,0.76327634]
[1752852698702,0.21092266,117940.0,117930.0,0.18655097]
[1752852698923,0.22139147,117940.0,117930.0,0.66676547]
[1752852699126,0.20443392,117940.0,117930.0,0.67524457]
[1752852699340,0.21291266,117940.0,117930.0,0.20350924]
[1752852699496,0.21291266,117940.0,117930.0,0.6582863]
[1752852699709,0.22139154,117940.0,117930.0,0.64980699]
[1752852699917,0.22139154,117940.0,117930.0,0.65828645]
[1752852700137,0.21291266,117940.0,117930.0,0.68372425]
[1752852700338,0.01045838,117940.0,117930.0,0.68869425]
[1752852700556,0.0189369,117940.0,117930.0,0.68570425]
[1752852700702,0.01145838,117940.0,117930.0,0.68570425]
[1752852700907,0.19799354,117940.0,117930.0,0.20548982]
[1752852701112,0.19799347,117940.0,117930.0,0.67524486]
[1752852701343,0.20647235,117940.0,117930.0,0.67524486]
[1752852701534,0.22257235,117940.0,117930.0,0.67524486]
[1752852701709,0.22357235,117940.0,117930.0,0.66676562]
[1752852701914,0.21509347,117940.0,117930.0,0.67524479]
[1752852702126,0.22357235,117940.0,117930.0,0.66676562]
[1752852702342,0.04551572,117940.0,117930.0,0.66676562]
[1752852702539,0.21509347,117940.0,117930.0,0.66676562]
[1752852702747,0.00847917,117930.0,117920.0,0.28856086]
[1752852702964,0.01894812,117930.0,117920.0,0.77075651]
[1752852703171,0.01894805,117930.0,117920.0,0.77075651]
[1752852703371,0.02543966,117920.0,117910.0,0.18658218]
[1752852703588,0.0359197,117920.0,117910.0,0.99831751]
[1752852703799,0.03591955,117920.0,117910.0,0.99831751]
[1752852704015,0.01895949,117920.0,117910.0,0.99831751]
[1752852704225,0.02497874,117940.0,117920.0,0.18656608]
[1752852704451,0.03345698,117940.0,117930.0,0.66676526]
[1752852704660,0.04391564,117940.0,117930.0,0.66676526]
[1752852705109,0.21349339,117940.0,117930.0,0.18655083]
[1752852705326,0.23657227,117940.0,117930.0,0.19503]
[1752852705654,0.23657227,117940.0,117930.0,0.17807159]
[1752852705853,0.21961537,117940.0,117930.0,0.16959213]
[1752852706059,0.21961537,117940.0,117930.0,0.17807173]
[1752852706289,0.21961537,117940.0,117930.0,0.18655126]
[1752852706684,0.22061537,117940.0,117930.0,0.18655126]
[1752852706904,0.22061537,117940.0,117930.0,0.19503065]
[1752852707328,0.22061537,117940.0,117930.0,0.20350996]
[1752852707489,0.22061537,117940.0,117930.0,0.2119892]
[1752852707911,0.21561537,117940.0,117930.0,0.19503065]
[1752852708109,0.00847924,117930.0,117920.0,0.74040976]
[1752852708310,0.00847989,117920.0,117910.0,1.0755963]
[1752852708505,0.0274301,117920.0,117910.0,0.99831736]
[1752852708856,0.20551693,117920.0,117910.0,0.51810179]
[1752852709050,0.20551693,117920.0,117910.0,0.52658261]
[1752852709451,0.03591042,117920.0,117910.0,0.53506329]
[1752852709669,0.20551693,117920.0,117910.0,0.5435439]
[1752852710231,0.03591042,117920.0,117910.0,0.55202444]
[1752852710640,0.20551693,117920.0,117910.0,0.52658261]
[1752852710850,0.20395701,117920.0,117910.0,0.17910193]
[1752852711060,0.26007713,117920.0,117910.0,0.17910193]
[1752852711301,0.25159695,117920.0,117910.0,0.17910193]
[1752852711524,0.24311663,117920.0,117910.0,0.001]
[1752852712169,0.20496651,117920.0,117910.0,0.003]
[1752852712623,0.18996651,117920.0,117900.0,0.23745455]
[1752852712846,0.19310186,117910.0,117900.0,0.22897337]
[1752852713262,0.19510186,117910.0,117900.0,0.22897337]
[1752852713517,0.19510186,117910.0,117900.0,0.22049204]
[1752852713936,0.19510186,117910.0,117900.0,0.22897351]
[1752852714165,0.19510186,117910.0,117900.0,0.23745491]
[1752852714822,0.2035829,117910.0,117900.0,0.23745448]
[1752852715049,0.005,117920.0,117900.0,0.67724378]
[1752852715269,0.003,117920.0,117910.0,0.66978848]
[1752852715496,0.003,117920.0,117910.0,0.67176848]
[1752852716152,0.20850657,117920.0,117910.0,0.64632622]
[1752852716402,0.03483999,117920.0,117910.0,0.17810186]
[1752852716640,0.02742017,117920.0,117910.0,0.19506315]
[1752852716879,0.03590049,117920.0,117910.0,0.19506322]
[1752852717115,0.20002711,117920.0,117910.0,0.18658261]
[1752852717393,0.19154701,117920.0,117910.0,0.64983719]
[1752852717633,0.18678651,117920.0,117910.0,0.17810186]
[1752852717840,0.22578946,117920.0,117910.0,0.17810186]
[1752852718027,0.22578946,117920.0,117910.0,0.16962089]
[1752852718230,0.22578946,117920.0,117910.0,0.17810193]
[1752852718439,0.17810171,117910.0,117900.0,0.51811648]
[1752852718697,0.20386275,117910.0,117900.0,0.50963528]
[1752852718912,0.20386275,117910.0,117900.0,0.5181169]
[1752852719322,0.20386275,117910.0,117900.0,0.99833377]
[1752852719526,0.20386275,117910.0,117900.0,0.52659844]
[1752852719730,0.19538193,117910.0,117900.0,0.55181988]
[1752852719971,0.19538193,117910.0,117900.0,0.37370298]
[1752852720177,0.21158193,117910.0,117900.0,0.54333812]
[1752852720388,0.01894121,117910.0,117900.0,0.6460604]
[1752852720600,0.00848039,117910.0,117900.0,1.03700611]
[1752852720807,0.24297996,117920.0,117910.0,0.19506315]
[1752852721011,0.2345,117920.0,117910.0,0.67206848]
[1752852721890,0.26841984,117920.0,117910.0,0.67206848]
[1752852722102,0.43999693,117920.0,117910.0,0.66358794]
[1752852722308,0.43999693,117920.0,117910.0,0.67206848]
[1752852722309,0.25245956,117920.0,117910.0,0.67206848]
[1752852722736,0.26093959,117920.0,117910.0,0.67206848]
[1752852722948,0.43902621,117920.0,117910.0,0.66358794]
[1752852723158,0.26094003,117920.0,117910.0,0.67206848]
[1752852723360,0.25245985,117920.0,117910.0,0.67206848]
[1752852723820,0.26094003,117920.0,117910.0,0.67206848]
[1752852724038,0.43352697,117920.0,117910.0,0.18018186]
[1752852724257,0.42504701,117920.0,117910.0,0.65831794]
[1752852724456,0.50167094,117920.0,117900.0,1.02674427]
[1752852724666,0.0084809,117910.0,117900.0,1.02674427]
[1752852724883,0.0084809,117910.0,117900.0,1.02882427]
[1752852725134,0.25346042,117920.0,117910.0,0.18658261]
[1752852725355,0.24497967,117920.0,117910.0,0.68054909]
[1752852725588,0.2355,117920.0,117910.0,0.83368323]
[1752852725805,0.25145748,117940.0,117930.0,0.18655112]
[1752852726004,0.44012198,117940.0,117930.0,0.675245]
[1752852726652,0.4316436,117940.0,117930.0,0.66676576]
[1752852726865,0.423165,117940.0,117930.0,0.64980706]
[1752852727072,0.41468633,117940.0,117930.0,0.65828659]
[1752852727277,0.40620745,117940.0,117920.0,0.66147888]
[1752852727486,0.17807166,117930.0,117920.0,0.65299928]
[1752852727701,0.18005166,117930.0,117920.0,0.18015388]
[1752852727903,0.18005166,117930.0,117920.0,0.66036924]
[1752852728110,0.18005166,117930.0,117920.0,0.47173533]
[1752852728318,0.19504675,117920.0,117910.0,0.98454622]
[1752852728538,0.18954679,117920.0,117910.0,0.81700533]
[1752852728751,0.18954679,117920.0,117910.0,0.8254863]
[1752852729011,0.18006669,117920.0,117910.0,0.34527]
[1752852729237,0.18006669,117920.0,117910.0,0.83396719]
[1752852729480,0.18007166,117930.0,117910.0,1.02054879]
[1752852729697,0.18655097,117930.0,117920.0,0.64982209]
[1752852729905,0.18655097,117930.0,117920.0,0.66357227]
[1752852730109,0.42105097,117930.0,117920.0,0.17487651]
[1752852730334,0.42105097,117930.0,117920.0,0.65509202]
[1752852730515,0.42303097,117930.0,117920.0,0.64661184]
[1752852730734,0.43151057,117930.0,117920.0,0.66357227]
[1752852730945,0.43151057,117930.0,117920.0,0.47700533]
[1752852731143,0.42503126,117930.0,117920.0,0.47700533]
[1752852731531,0.42503126,117930.0,117920.0,0.48548558]
[1752852731738,0.42503126,117930.0,117920.0,0.47700533]
[1752852732193,0.41655173,117930.0,117920.0,0.47381533]
[1752852732395,0.41655173,117930.0,117920.0,0.47173533]
[1752852732534,0.41655173,117930.0,117920.0,0.47700533]
[1752852732792,0.41855173,117930.0,117920.0,0.47700533]
[1752852733144,0.41655173,117930.0,117920.0,0.47700533]
[1752852733547,0.41655173,117930.0,117920.0,0.48548565]
[1752852733548,0.41657173,117930.0,117920.0,0.48548565]
[1752852733753,0.41657173,117930.0,117920.0,0.47700533]
[1752852733972,0.41657173,117930.0,117920.0,0.00527]
[1752852734183,0.41657173,117930.0,117920.0,0.48548565]
[1752852734401,0.41657173,117930.0,117920.0,0.47700533]
[1752852734977,0.47718165,117930.0,117920.0,0.00527]
[1752852735342,0.47718165,117930.0,117920.0,0.47700533]
[1752852736060,0.41855173,117930.0,117920.0,0.47700533]
[1752852736279,0.41855173,117930.0,117920.0,0.64661184]
[1752852736489,0.41855173,117930.0,117920.0,0.65509216]
[1752852736703,0.41855173,117930.0,117920.0,0.47381533]
[1752852736918,0.41855173,117930.0,117920.0,0.00208]
[1752852737171,0.49237965,117930.0,117920.0,0.47173533]
[1752852737362,0.43355173,117930.0,117920.0,0.47173533]
[1752852737625,0.17808669,117920.0,117910.0,1.00150817]
[1752852737870,0.18656679,117920.0,117910.0,1.00358817]
[1752852738099,0.19504711,117920.0,117910.0,1.02054975]
[1752852738315,0.203527,117920.0,117910.0,1.02054989]
[1752852738543,0.18656701,117920.0,117910.0,0.9951072]
[1752852738756,0.18656701,117920.0,117910.0,1.0035881]
[1752852738975,0.00947996,117920.0,117910.0,1.01206892]
[1752852739239,0.01795971,117920.0,117910.0,1.02903021]
[1752852739434,0.02643981,117920.0,117910.0,1.02903021]
[1752852739828,0.02743981,117920.0,117910.0,1.02903021]
[1752852740189,0.01047975,117920.0,117910.0,1.02903021]
[1752852740420,0.01895949,117920.0,117910.0,1.14598983]
[1752852740637,0.01895942,117920.0,117910.0,1.14598983]
[1752852741055,0.002,117920.0,117910.0,1.15730948]
[1752852741259,0.002,117920.0,117910.0,1.6406138]
[1752852742392,0.001,117920.0,117910.0,1.6406138]
[1752852742742,0.2345,117930.0,117920.0,0.19504661]
[1752852742966,0.2345,117930.0,117920.0,1.27984553]
[1752852743171,0.2345,117930.0,117920.0,1.31760931]
[1752852743592,0.2345,117930.0,117920.0,1.65760931]
[1752852744007,0.2355,117930.0,117920.0,1.65760931]
[1752852744214,0.001,117930.0,117920.0,1.65760931]
[1752852744421,0.002,117930.0,117920.0,1.65760931]
[1752852745041,0.002,117930.0,117920.0,1.1627162]
[1752852745851,0.001,117930.0,117920.0,1.1627162]
[1752852746259,0.0001497,117940.0,117930.0,0.53503007]
[1752852746462,0.0001497,117940.0,117930.0,1.2115955]
[1752852746683,0.0001497,117940.0,117930.0,1.2147855]
[1752852747893,0.0001497,117940.0,117930.0,0.65731035]
[1752852748115,0.19516359,117940.0,117930.0,0.43078028]
[1752852748397,0.0084791,117930.0,117920.0,0.52008654]
[1752852748625,0.18853083,117930.0,117920.0,0.002]
[1752852748849,0.19565159,117930.0,117920.0,0.002]
[1752852749073,0.21135159,117930.0,117920.0,0.002]
[1752852749372,0.21434159,117930.0,117920.0,0.002]
[1752852749590,0.02543981,117920.0,117910.0,0.68373861]
[1752852749815,0.00847931,117930.0,117920.0,0.02544031]
[1752852750041,0.18562745,117940.0,117930.0,0.002]
[1752852750260,0.18655105,117930.0,117920.0,0.66676264]
[1752852750464,0.18655069,117930.0,117920.0,0.68580249]
[1752852750703,0.19602979,117930.0,117920.0,0.68888249]
[1752852751168,0.19702979,117930.0,117920.0,0.68040267]
[1752852751389,0.20450932,117930.0,117920.0,0.68040267]
[1752852751607,0.20450932,117930.0,117920.0,0.6804026]
[1752852752094,0.02643766,117930.0,117920.0,0.68888199]
[1752852752308,0.001,117930.0,117920.0,0.77464161]
[1752852752490,0.19602964,117930.0,117920.0,0.68040217]
[1752852752626,0.19602964,117930.0,117920.0,0.67192228]
[1752852752826,0.20450917,117930.0,117920.0,0.66344232]
[1752852753027,0.20450917,117930.0,117920.0,0.67192228]
[1752852753227,0.20450917,117930.0,117920.0,0.66344232]
[1752852753461,0.20450924,117930.0,117920.0,0.19172679]
[1752852753672,0.20450917,117930.0,117920.0,0.67192235]
[1752852753872,0.21398877,117930.0,117920.0,0.68040231]
[1752852754077,0.19702964,117930.0,117920.0,0.21716667]
[1752852754235,0.20550917,117930.0,117920.0,0.68040231]
[1752852754460,0.21398877,117930.0,117920.0,0.68040231]
[1752852754673,0.20550917,117930.0,117920.0,0.6888822]
[1752852754905,0.20550917,117930.0,117920.0,0.68040231]
[1752852755119,0.20748917,117930.0,117920.0,0.66344225]
[1752852755327,0.19900964,117930.0,117920.0,0.67192207]
[1752852755557,0.2074891,117930.0,117920.0,0.67192207]
[1752852755782,0.2055091,117930.0,117920.0,0.66344225]
[1752852756032,0.02743751,117930.0,117920.0,0.68040196]
[1752852756243,0.002,117930.0,117920.0,0.71670338]
[1752852757301,0.002,117930.0,117920.0,0.69640196]
[1752852757507,0.002,117930.0,117920.0,0.71240196]
[1752852758286,0.002,117930.0,117920.0,1.13791224]
[1752852759948,0.001,117930.0,117920.0,1.13791224]
[1752852760772,0.0001497,117940.0,117930.0,0.56643007]
[1752852760931,0.0001497,117940.0,117930.0,1.12875588]
[1752852761568,0.0001497,117940.0,117930.0,1.11179747]
[1752852761912,0.17807166,117930.0,117920.0,0.51260651]
[1752852762114,0.19666166,117930.0,117920.0,0.52956708]
[1752852762323,0.19666166,117930.0,117920.0,0.53804726]
[1752852762526,0.19666166,117930.0,117920.0,0.54452729]
[1752852762729,0.19666166,117930.0,117920.0,0.53604726]
[1752852762935,0.19666166,117930.0,117920.0,0.17908683]
[1752852763142,0.20388213,117930.0,117920.0,0.001]
[1752852763364,0.20686213,117930.0,117920.0,0.001]
[1752852765717,0.20354375,117910.0,117900.0,0.17811057]
[1752852765926,0.22815336,117910.0,117900.0,0.17811704]
[1752852766158,0.22815336,117910.0,117900.0,0.18659873]
[1752852766371,0.01047039,117910.0,117900.0,0.68375839]
[1752852766568,0.00848039,117910.0,117900.0,0.77436867]
[1752852766781,0.02741153,117910.0,117900.0,0.68885839]
[1752852767172,0.02841146,117910.0,117900.0,0.68885839]
[1752852767390,0.02744146,117910.0,117900.0,0.68885839]
[1752852768097,0.002,117910.0,117900.0,0.68885839]
[1752852768323,0.002,117910.0,117900.0,1.68774382]
[1752852768513,0.002,117910.0,117900.0,1.02037713]
[1752852768514,0.20554332,117910.0,117900.0,1.02037713]
[1752852768730,0.19917293,117910.0,117900.0,0.81171553]
[1752852768935,0.18221179,117910.0,117900.0,0.34]
[1752852769144,0.18969247,117910.0,117900.0,0.50963528]
[1752852769357,0.00848054,117910.0,117900.0,1.02037634]
[1752852770226,0.01696122,117910.0,117900.0,1.02037634]
[1752852770438,0.01796122,117910.0,117900.0,1.02037634]
[1752852770647,0.01896122,117910.0,117900.0,1.02037634]
[1752852771261,0.02094122,117910.0,117900.0,1.02037634]
[1752852771510,0.002,117910.0,117900.0,1.10613596]
[1752852771719,0.002,117910.0,117900.0,1.69566177]
[1752852771930,0.002,117910.0,117900.0,1.22394624]
[1752852772126,0.002,117910.0,117900.0,1.69566177]
[1752852772547,0.002,117910.0,117900.0,1.60990215]
[1752852772967,0.001,117910.0,117900.0,1.60990215]
[1752852773403,0.2345,117920.0,117910.0,0.22586315]